fUSD/lending_fUSD_20250215
["ID","MTS","AMOUNT","RATE_DAILY","PERIOD"]
[353135903,1739593841478,-501.49689302,0.00011076,2]
[353135904,1739593841487,-1019.14,0.00011076,2]
[353135905,1739593841496,-500.78145216,0.00011076,2]
[353135906,1739593841508,-590.9472722,0.00011076,2]
[353135907,1739593841517,-576.25,0.00011076,2]
[353135908,1739593841527,-1550.29,0.00011076,2]
[353135909,1739593841536,-500.41949387,0.00011076,2]
[353135910,1739593841546,-500.0,0.00011076,2]
[353135911,1739593841555,-500.0,0.00011076,2]
[353135912,1739593841564,-504.34801821,0.00011076,2]
[353135913,1739593841574,-634.48,0.00011076,2]
[353135914,1739593841584,-500.0,0.00011076,2]
[353135915,1739593841594,-500.0,0.00011076,2]
[353135916,1739593841604,-500.0,0.00011076,2]
[353135917,1739593841613,-500.0,0.00011076,2]
[353135918,1739593841622,-740.86,0.00011076,2]
[353135919,1739593841632,-500.0,0.00011076,2]
[353135920,1739593841642,-501.41618793,0.00011076,2]
[353135921,1739593841651,-950.97,0.00011076,2]
[353135922,1739593841660,-500.0,0.00011076,2]
[353135923,1739593841670,-500.0,0.00011076,2]
[353135924,1739593841679,-500.0,0.00011076,2]
[353135925,1739593841688,-508.70209635,0.00011076,2]
[353135926,1739593841698,-1068.34,0.00011076,2]
[353135927,1739593841707,-1108.56,0.00011076,2]
[353135928,1739593841717,-527.72,0.00011076,2]
[353135929,1739593841726,-500.0,0.00011076,2]
[353135930,1739593841736,-500.95111311,0.00011076,2]
[353135931,1739593841745,-500.0,0.00011076,2]
[353135932,1739593841755,-944.97,0.00011076,2]
[353135933,1739593841830,-1053.33,0.00011076,2]
[353135934,1739593841841,-2275.7,0.00011076,2]
[353135935,1739593841852,-982.57,0.00011076,2]
[353135936,1739593841862,-500.0,0.00011076,2]
[353135937,1739593841872,-500.0,0.00011076,2]
[353135938,1739593841882,-500.0,0.00011076,2]
[353135939,1739593841891,-500.0,0.00011076,2]
[353135940,1739593841900,-828.77,0.00011076,2]
[353135941,1739593841909,-1285.66,0.00011076,2]
[353135942,1739593841919,-986.44,0.00011076,2]
[353135943,1739593841930,-500.0,0.00011076,2]
[353135944,1739593841941,-945.07,0.00011076,2]
[353135945,1739593841952,-501.13611062,0.00011076,2]
[353135946,1739593841961,-500.0,0.00011076,2]
[353135947,1739593841971,-1414.18,0.00011076,2]
[353135948,1739593841980,-873.52,0.00011076,2]
[353135949,1739593841989,-294.88174852,0.00011076,2]
[353135950,1739593841998,-920.09,0.00011076,2]
[353135951,1739593842008,-500.0,0.00011076,2]
[353135952,1739593842017,-2541.83,0.00011076,2]
[353135953,1739593842027,-1295.6,0.00011076,2]
[353135954,1739593842038,-500.0,0.00011076,2]
[353135955,1739593842047,-1146.51,0.00011076,2]
[353135956,1739593842057,-682.81,0.00011076,2]
[353135957,1739593842066,-291.27991217,0.00011076,2]
[353135958,1739593842077,-1245.83,0.00011076,2]
[353135959,1739593842087,-558.71,0.00011076,2]
[353135960,1739593842096,-500.0,0.00011076,2]
[353135961,1739593842106,-725.93,0.00011076,2]
[353135962,1739593842116,-766.38,0.00011076,2]
[353135963,1739593842125,-500.0,0.00011076,2]
[353135964,1739593842135,-500.0,0.00011076,2]
[353135965,1739593842146,-517.84,0.00011076,2]
[353135966,1739593842155,-500.0,0.00011076,2]
[353135967,1739593842165,-500.0,0.00011076,2]
[353135968,1739593842174,-1572.6,0.00011076,2]
[353135969,1739593842183,-500.0,0.00011076,2]
[353135970,1739593842193,-501.73003047,0.00011076,2]
[353135971,1739593842203,-897.07,0.00011076,2]
[353135972,1739593842212,-251.25422869,0.00011076,2]
[353135973,1739593842221,-500.0,0.00011076,2]
[353135974,1739593842231,-1839.81,0.00011076,2]
[353135975,1739593842240,-963.56,0.00011076,2]
[353135976,1739593842249,-583.4,0.00011076,2]
[353135977,1739593842259,-500.0,0.00011076,2]
[353135978,1739593842268,-500.0,0.00011076,2]
[353135979,1739593842277,-492.92461826,0.00011076,2]
[353135980,1739593842286,-859.29,0.00011076,2]
[353135981,1739593842296,-500.0,0.00011076,2]
[353135982,1739593842305,-500.0,0.00011076,2]
[353135983,1739593842315,-500.0,0.00011076,2]
[353135985,1739593842324,-726.12,0.00011076,2]
[353135986,1739593842333,-601.15,0.00011076,2]
[353135989,1739593842343,-618.5,0.00011076,2]
[353135990,1739593842352,-500.0,0.00011076,2]
[353135991,1739593842361,-500.0,0.00011077,2]
[353135992,1739593842371,-500.0,0.00011077,2]
[353135993,1739593842380,-500.0,0.00011077,2]
[353135995,1739593842390,-701.16,0.00011077,2]
[353135997,1739593842399,-201.1,0.00011077,2]
[353135999,1739593842409,-500.0,0.00011077,2]
[353136000,1739593842419,-500.0,0.00011077,2]
[353136001,1739593842429,-837.21,0.00011077,2]
[353136002,1739593842438,-158.568018,0.00011077,2]
[353136003,1739593842447,-500.0,0.00011077,2]
[353136004,1739593842460,-500.0,0.00011077,2]
[353136005,1739593842471,-500.0,0.00011077,2]
[353136006,1739593842480,-500.0,0.00011077,2]
[353136007,1739593842490,-500.0,0.00011077,2]
[353136008,1739593842498,-603.94,0.00011077,2]
[353136009,1739593842512,-500.0,0.00011077,2]
[353136010,1739593842522,-500.0,0.00011077,2]
[353136011,1739593842531,-500.0,0.00011077,2]
[353136012,1739593842540,-500.0,0.00011077,2]
[353136013,1739593842550,-500.0,0.00011077,2]
[353136014,1739593842559,-500.0,0.00011077,2]
[353136015,1739593842568,-500.0,0.00011077,2]
[353136016,1739593842579,-500.0,0.00011077,2]
[353136017,1739593842591,-689.49,0.00011077,2]
[353136018,1739593842601,-500.0,0.00011077,2]
[353136019,1739593842611,-606.28,0.00011077,2]
[353136020,1739593842622,-500.0,0.00011077,2]
[353136021,1739593842632,-546.69,0.00011077,2]
[353136022,1739593842642,-500.0,0.00011077,2]
[353136023,1739593842653,-500.0,0.00011077,2]
[353136024,1739593842662,-500.0,0.00011077,2]
[353136025,1739593842671,-500.0,0.00011077,2]
[353136026,1739593842681,-500.0,0.00011077,2]
[353136027,1739593842692,-500.0,0.00011077,2]
[353136028,1739593842703,-722.52,0.00011077,2]
[353136029,1739593842713,-500.0,0.00011077,2]
[353136030,1739593842723,-500.0,0.00011077,2]
[353136031,1739593842732,-500.0,0.00011077,2]
[353136032,1739593842741,-500.0,0.00011077,2]
[353136033,1739593842751,-500.0,0.00011077,2]
[353136034,1739593842760,-500.0,0.00011077,2]
[353136035,1739593842770,-500.0,0.00011077,2]
[353136036,1739593842782,-500.0,0.00011077,2]
[353136037,1739593842794,-500.0,0.00011077,2]
[353136038,1739593842804,-500.0,0.00011077,2]
[353136039,1739593842813,-548.7,0.00011077,2]
[353136040,1739593842822,-500.0,0.00011077,2]
[353136042,1739593842831,-825.31,0.00011077,2]
[353136044,1739593842841,-504.5,0.00011077,2]
[353136045,1739593842851,-500.0,0.00011077,2]
[353136046,1739593842859,-648.63,0.00011077,2]
[353136047,1739593842870,-500.0,0.00011077,2]
[353136048,1739593842880,-500.0,0.00011077,2]
[353136049,1739593842891,-500.0,0.00011077,2]
[353136050,1739593842901,-500.0,0.00011077,2]
[353136051,1739593842911,-500.0,0.00011077,2]
[353136052,1739593842920,-631.45,0.00011077,2]
[353136053,1739593842930,-523.67,0.00011077,2]
[353136054,1739593842939,-986.3,0.00011077,2]
[353136055,1739593842948,-627.76,0.00011077,2]
[353136056,1739593842958,-1561.14,0.00011077,2]
[353136057,1739593842968,-599.75,0.00011077,2]
[353136058,1739593842977,-876.51,0.00011077,2]
[353136059,1739593842986,-500.0,0.00011077,2]
[353136060,1739593842997,-1025.65,0.00011077,2]
[353136061,1739593843006,-500.0,0.00011077,2]
[353136062,1739593843015,-500.0,0.00011077,2]
[353136063,1739593843024,-500.0,0.00011077,2]
[353136064,1739593843034,-500.0,0.00011077,2]
[353136065,1739593843043,-500.0,0.00011077,2]
[353136066,1739593843053,-838.6,0.00011077,2]
[353136067,1739593843063,-582.559622,0.00011077,2]
[353136068,1739593843072,-740.5,0.00011077,2]
[353136069,1739593843081,-500.0,0.00011077,2]
[353136070,1739593843091,-742.28,0.00011077,2]
[353136071,1739593843100,-500.0,0.00011077,2]
[353136072,1739593843109,-633.18,0.00011077,2]
[353136073,1739593843118,-555.04,0.00011077,2]
[353136074,1739593843127,-976.16,0.00011077,2]
[353136075,1739593843137,-500.0,0.00011077,2]
[353136076,1739593843147,-531.86,0.00011077,2]
[353136077,1739593843156,-1565.45,0.00011077,2]
[353136078,1739593843166,-1298.92,0.00011077,2]
[353136079,1739593843175,-943.37,0.00011077,2]
[353136080,1739593843184,-628.53,0.00011077,2]
[353136081,1739593843193,-1055.91,0.00011077,2]
[353136082,1739593843202,-515.13508,0.00011077,2]
[353136083,1739593843212,-878.08,0.00011077,2]
[353136084,1739593843222,-500.0,0.00011077,2]
[353136085,1739593843231,-1036.5,0.00011077,2]
[353136086,1739593843241,-500.0,0.00011077,2]
[353136087,1739593843250,-500.0,0.00011077,2]
[353136088,1739593843260,-1228.85,0.00011077,2]
[353136089,1739593843269,-1315.67,0.00011077,2]
[353136090,1739593843278,-772.03,0.00011077,2]
[353136091,1739593843287,-1469.47,0.00011077,2]
[353136092,1739593843296,-500.0,0.00011077,2]
[353136093,1739593843306,-5419.81,0.00011077,2]
[353136094,1739593843315,-3773.37,0.00011077,2]
[353136095,1739593843324,-835.28,0.00011077,2]
[353136096,1739593843334,-500.0,0.00011077,2]
[353136097,1739593843343,-500.0,0.00011077,2]
[353136098,1739593843352,-1039.68,0.00011077,2]
[353136099,1739593843361,-915.3,0.00011077,2]
[353136100,1739593843370,-772.32,0.00011077,2]
[353136101,1739593843379,-1220.64,0.00011077,2]
[353136102,1739593843388,-500.0,0.00011077,2]
[353136103,1739593843398,-907.63,0.00011077,2]
[353136104,1739593843407,-1560.12,0.00011077,2]
[353136105,1739593843416,-500.0,0.00011077,2]
[353136106,1739593843426,-699.85,0.00011077,2]
[353136107,1739593843435,-670.15,0.00011077,2]
[353136108,1739593843444,-1432.47,0.00011077,2]
[353136109,1739593843453,-500.0,0.00011077,2]
[353136110,1739593843462,-810.05655292,0.00011077,2]
[353136111,1739593844121,-430.64587059,0.00010994,2]
[353136112,1739593844176,-431.20286139,0.00010994,2]
[353136113,1739593844758,-249.69126802,0.00010994,2]
[353136114,1739593844768,-1111.54,0.00011076,2]
[353136115,1739593844778,-505.63344708,0.00011077,2]
[353136116,1739593844788,-1251.67,0.00011077,2]
[353136117,1739593844798,-3544.78,0.00011077,2]
[353136118,1739593844808,-1916.85,0.00011077,2]
[353136119,1739593844817,-802.07,0.00011077,2]
[353136120,1739593844826,-500.0,0.00011077,2]
[353136121,1739593844835,-803.9,0.00011077,2]
[353136122,1739593844845,-951.13,0.00011077,2]
[353136123,1739593844855,-132.16974752,0.00011077,2]
[353136124,1739593844893,-1392.54453,0.00011077,2]
[353136125,1739593844905,-171.51572248,0.00011077,2]
[353136126,1739593844914,-783.89,0.00011077,2]
[353136127,1739593844924,-1099.6,0.00011077,2]
[353136128,1739593844934,-307.76318173,0.00011077,2]
[353136129,1739593844946,-259.25681827,0.00011077,2]
[353136130,1739593844955,-611.25386058,0.00011077,2]
[353136131,1739593844966,-422.06000004,0.00011077,2]
[353136132,1739593844977,-111.88613938,0.00011077,2]
[353136133,1739593844987,-1497.05,0.00011077,2]
[353136134,1739593844996,-500.0,0.00011077,2]
[353136135,1739593845005,-1000.0,0.00011077,2]
[353136136,1739593845015,-551.89,0.00011078,2]
[353136137,1739593845023,-777.3,0.00011078,2]
[353136138,1739593845034,-526.21,0.00011078,2]
[353136139,1739593845043,-500.0,0.00011078,2]
[353136140,1739593845052,-500.0,0.00011078,2]
[353136141,1739593845062,-707.69,0.00011078,2]
[353136142,1739593845071,-500.0,0.00011078,2]
[353136143,1739593845081,-500.0,0.00011078,2]
[353136144,1739593845090,-500.0,0.00011078,2]
[353136145,1739593845100,-500.0,0.00011078,2]
[353136146,1739593845109,-578.3,0.00011078,2]
[353136147,1739593845119,-646.0,0.00011078,2]
[353136148,1739593845129,-500.0,0.00011078,2]
[353136149,1739593845139,-500.0,0.00011078,2]
[353136150,1739593845149,-500.0,0.00011078,2]
[353136151,1739593845159,-500.0,0.00011078,2]
[353136152,1739593845168,-500.0,0.00011079,2]
[353136153,1739593845178,-500.0,0.00011079,2]
[353136154,1739593845189,-500.0,0.00011079,2]
[353136155,1739593845199,-500.0,0.00011079,2]
[353136156,1739593845210,-500.0,0.00011079,2]
[353136157,1739593845220,-500.0,0.00011079,2]
[353136158,1739593845230,-500.0,0.00011079,2]
[353136159,1739593845240,-500.0,0.00011079,2]
[353136160,1739593845250,-500.0,0.00011079,2]
[353136161,1739593845260,-500.0,0.00011079,2]
[353136162,1739593845269,-500.0,0.00011079,2]
[353136163,1739593845279,-500.0,0.00011079,2]
[353136164,1739593845289,-500.0,0.00011079,2]
[353136165,1739593845299,-500.0,0.00011079,2]
[353136166,1739593845314,-500.0,0.00011079,2]
[353136167,1739593845325,-500.0,0.00011079,2]
[353136168,1739593845335,-527.59,0.00011079,2]
[353136169,1739593845346,-505.71573866,0.00011079,2]
[353136171,1739593845356,-500.0,0.00011079,2]
[353136173,1739593845366,-500.0,0.00011079,2]
[353136175,1739593845375,-500.0,0.00011079,2]
[353136177,1739593845386,-500.0,0.00011079,2]
[353136179,1739593845396,-500.0,0.00011079,2]
[353136181,1739593845407,-500.86250277,0.00011079,2]
[353136183,1739593845417,-500.0,0.00011079,2]
[353136185,1739593845427,-500.0,0.00011079,2]
[353136187,1739593845438,-500.0,0.00011079,2]
[353136189,1739593845448,-500.0,0.00011079,2]
[353136191,1739593845459,-500.0,0.00011079,2]
[353136193,1739593845472,-500.80875895,0.00011079,2]
[353136194,1739593845483,-500.0,0.00011079,2]
[353136196,1739593845494,-500.0,0.00011079,2]
[353136197,1739593845509,-500.0,0.00011079,2]
[353136198,1739593845519,-505.99329737,0.00011079,2]
[353136199,1739593845529,-500.0,0.00011079,2]
[353136200,1739593845539,-507.30938301,0.00011079,2]
[353136201,1739593845549,-500.0,0.00011079,2]
[353136202,1739593845562,-500.0,0.00011079,2]
[353136203,1739593845572,-500.0,0.00011079,2]
[353136204,1739593845583,-498.20171991,0.00011079,2]
[353136205,1739593845594,-500.0,0.00011079,2]
[353136206,1739593845603,-500.0,0.00011079,2]
[353136207,1739593845612,-501.95797251,0.00011079,2]
[353136208,1739593845622,-500.0,0.00011079,2]
[353136209,1739593845631,-508.31733396,0.00011079,2]
[353136210,1739593845641,-500.0,0.00011079,2]
[353136211,1739593845651,-500.0,0.00011079,2]
[353136212,1739593845660,-500.0,0.00011079,2]
[353136213,1739593845671,-500.0,0.00011079,2]
[353136214,1739593845682,-500.0,0.00011079,2]
[353136215,1739593845692,-501.01036154,0.00011079,2]
[353136216,1739593845701,-507.3940069,0.00011079,2]
[353136217,1739593845711,-500.0,0.00011079,2]
[353136218,1739593845720,-506.72980101,0.00011079,2]
[353136219,1739593845729,-500.0,0.00011079,2]
[353136220,1739593845739,-500.0,0.00011079,2]
[353136221,1739593845748,-500.0,0.00011079,2]
[353136222,1739593845758,-500.0,0.00011079,2]
[353136223,1739593845768,-500.0,0.00011079,2]
[353136224,1739593845777,-500.0,0.00011079,2]
[353136225,1739593845787,-500.0,0.00011079,2]
[353136226,1739593845797,-500.0,0.00011079,2]
[353136227,1739593845808,-500.0,0.00011079,2]
[353136228,1739593845818,-500.0,0.00011079,2]
[353136229,1739593845828,-500.0,0.00011079,2]
[353136230,1739593845837,-500.0,0.00011079,2]
[353136231,1739593845847,-500.0,0.00011079,2]
[353136232,1739593845856,-500.0,0.00011079,2]
[353136233,1739593845866,-500.0,0.00011079,2]
[353136234,1739593845876,-500.0,0.00011079,2]
[353136236,1739593845886,-500.0,0.00011079,2]
[353136238,1739593845896,-500.0,0.00011079,2]
[353136239,1739593845906,-500.0,0.00011079,2]
[353136240,1739593845915,-500.0,0.00011079,2]
[353136241,1739593845925,-500.0,0.00011079,2]
[353136242,1739593845935,-500.0,0.00011079,2]
[353136243,1739593845946,-500.0,0.00011079,2]
[353136244,1739593845957,-500.0,0.00011079,2]
[353136245,1739593845966,-500.0,0.00011079,2]
[353136247,1739593845976,-500.0,0.00011079,2]
[353136249,1739593845986,-527.09539279,0.00011079,2]
[353136251,1739593845996,-500.0,0.00011079,2]
[353136253,1739593846006,-500.0,0.00011079,2]
[353136254,1739593846016,-500.0,0.00011079,2]
[353136255,1739593846026,-500.0,0.00011079,2]
[353136256,1739593846035,-501.95219821,0.00011079,2]
[353136257,1739593846046,-500.0,0.00011079,2]
[353136258,1739593846055,-500.0,0.00011079,2]
[353136259,1739593846065,-500.0,0.00011079,2]
[353136260,1739593846075,-500.0,0.00011079,2]
[353136261,1739593846085,-624.62,0.00011079,2]
[353136262,1739593846095,-500.0,0.00011079,2]
[353136263,1739593846105,-500.0,0.00011079,2]
[353136264,1739593846115,-507.79445428,0.00011079,2]
[353136265,1739593846125,-500.0,0.00011079,2]
[353136266,1739593846135,-500.0,0.00011079,2]
[353136267,1739593846145,-500.0,0.00011079,2]
[353136268,1739593846155,-247.47374496,0.00011079,2]
[353136269,1739593846166,-500.0,0.00011079,2]
[353136270,1739593846177,-501.71,0.00011079,2]
[353136271,1739593846187,-500.0,0.00011079,2]
[353136272,1739593846196,-500.0,0.00011079,2]
[353136273,1739593846206,-500.0,0.00011079,2]
[353136274,1739593846217,-500.0,0.00011079,2]
[353136275,1739593846227,-500.0,0.00011079,2]
[353136276,1739593846237,-378.33657326,0.00011079,2]
[353136277,1739593846247,-500.0,0.00011079,2]
[353136278,1739593846257,-500.0,0.00011079,2]
[353136279,1739593846268,-500.0,0.00011079,2]
[353136280,1739593846278,-500.0,0.00011079,2]
[353136281,1739593846287,-500.0,0.00011079,2]
[353136282,1739593846297,-500.0,0.00011079,2]
[353136283,1739593846308,-500.0,0.00011079,2]
[353136284,1739593846318,-500.0,0.00011079,2]
[353136285,1739593846329,-500.0,0.00011079,2]
[353136286,1739593846339,-500.0,0.00011079,2]
[353136287,1739593846350,-500.0,0.00011079,2]
[353136288,1739593846359,-538.34456142,0.00011079,2]
[353136289,1739593846370,-500.0,0.00011079,2]
[353136290,1739593846380,-615.33274651,0.00011079,2]
[353136291,1739593846390,-500.0,0.00011079,2]
[353136292,1739593846400,-500.0,0.00011079,2]
[353136293,1739593846410,-500.0,0.00011079,2]
[353136294,1739593846420,-500.0,0.00011079,2]
[353136295,1739593846431,-500.0,0.00011079,2]
[353136296,1739593846441,-586.10374856,0.00011079,2]
[353136297,1739593846451,-500.0,0.00011079,2]
[353136298,1739593846461,-500.0,0.00011079,2]
[353136299,1739593846472,-500.0,0.00011079,2]
[353136300,1739593846482,-500.0,0.00011079,2]
[353136301,1739593846492,-501.33305937,0.00011079,2]
[353136302,1739593846502,-500.0,0.00011079,2]
[353136303,1739593846516,-500.0,0.00011079,2]
[353136304,1739593846527,-500.0,0.00011079,2]
[353136305,1739593846536,-500.0,0.00011079,2]
[353136306,1739593846548,-500.0,0.00011079,2]
[353136307,1739593846561,-500.0,0.00011079,2]
[353136308,1739593846572,-506.43391683,0.00011079,2]
[353136309,1739593846582,-500.0,0.00011079,2]
[353136310,1739593846594,-500.0,0.00011079,2]
[353136311,1739593846605,-500.0,0.00011079,2]
[353136312,1739593846616,-500.0,0.00011079,2]
[353136313,1739593846626,-500.0,0.00011079,2]
[353136314,1739593846635,-500.0,0.00011079,2]
[353136315,1739593846646,-500.0,0.00011079,2]
[353136316,1739593846655,-500.0,0.00011079,2]
[353136317,1739593846665,-500.0,0.00011079,2]
[353136318,1739593846675,-500.0,0.00011079,2]
[353136319,1739593846685,-500.0,0.00011079,2]
[353136320,1739593846695,-500.0,0.00011079,2]
[353136321,1739593846704,-500.0,0.00011079,2]
[353136322,1739593846714,-500.0,0.00011079,2]
[353136323,1739593846724,-500.0,0.00011079,2]
[353136324,1739593846735,-500.0,0.00011079,2]
[353136325,1739593846745,-500.0,0.00011079,2]
[353136326,1739593846755,-500.0,0.00011079,2]
[353136327,1739593846764,-500.0,0.00011079,2]
[353136328,1739593846774,-500.0,0.00011079,2]
[353136329,1739593846784,-500.0,0.00011079,2]
[353136330,1739593846794,-500.0,0.00011079,2]
[353136331,1739593846804,-500.0,0.00011079,2]
[353136332,1739593846814,-500.0,0.00011079,2]
[353136333,1739593846824,-500.0,0.00011079,2]
[353136334,1739593846835,-500.0,0.00011079,2]
[353136335,1739593846845,-500.0,0.00011079,2]
[353136336,1739593846855,-500.0,0.00011079,2]
[353136337,1739593846864,-500.0,0.00011079,2]
[353136338,1739593846875,-500.0,0.00011079,2]
[353136339,1739593846885,-500.0,0.00011079,2]
[353136340,1739593846896,-500.0,0.00011079,2]
[353136341,1739593846907,-500.0,0.00011079,2]
[353136342,1739593846918,-500.0,0.00011079,2]
[353136343,1739593846928,-500.0,0.00011079,2]
[353136344,1739593846938,-500.0,0.00011079,2]
[353136345,1739593846949,-500.0,0.00011079,2]
[353136346,1739593846959,-500.0,0.00011079,2]
[353136347,1739593846970,-500.0,0.00011079,2]
[353136348,1739593846980,-500.9487653,0.00011079,2]
[353136349,1739593846991,-500.0,0.00011079,2]
[353136350,1739593847001,-500.0,0.00011079,2]
[353136351,1739593847015,-500.0,0.00011079,2]
[353136352,1739593847024,-500.0,0.00011079,2]
[353136353,1739593847034,-502.50500873,0.00011079,2]
[353136354,1739593847044,-500.0,0.00011079,2]
[353136355,1739593847054,-503.23356774,0.00011079,2]
[353136356,1739593847064,-501.86690335,0.00011079,2]
[353136357,1739593847074,-500.0,0.00011079,2]
[353136358,1739593847084,-500.0,0.00011079,2]
[353136359,1739593847095,-500.0,0.00011079,2]
[353136360,1739593847105,-500.0,0.00011079,2]
[353136361,1739593847115,-500.0,0.00011079,2]
[353136362,1739593847125,-500.0,0.00011079,2]
[353136363,1739593847136,-500.0,0.00011079,2]
[353136364,1739593847146,-500.0,0.00011079,2]
[353136365,1739593847157,-502.0279522,0.00011079,2]
[353136366,1739593847166,-500.0,0.00011079,2]
[353136367,1739593847177,-503.67325716,0.00011079,2]
[353136368,1739593847186,-502.46564285,0.00011079,2]
[353136369,1739593847196,-501.62811707,0.00011079,2]
[353136370,1739593847208,-500.0,0.00011079,2]
[353136371,1739593847219,-500.0,0.00011079,2]
[353136372,1739593847229,-500.0,0.00011079,2]
[353136373,1739593847239,-500.0,0.00011079,2]
[353136374,1739593847249,-500.0,0.00011079,2]
[353136375,1739593847259,-500.0,0.00011079,2]
[353136376,1739593847268,-500.0,0.00011079,2]
[353136377,1739593847278,-500.0,0.00011079,2]
[353136378,1739593847287,-500.0,0.00011079,2]
[353136379,1739593847298,-500.0,0.00011079,2]
[353136380,1739593847308,-508.15097911,0.00011079,2]
[353136381,1739593847318,-500.0,0.00011079,2]
[353136382,1739593847328,-500.0,0.00011079,2]
[353136383,1739593847338,-604.26,0.00011079,2]
[353136384,1739593847348,-500.0,0.00011079,2]
[353136385,1739593847358,-500.0,0.00011079,2]
[353136386,1739593847367,-500.0,0.00011079,2]
[353136387,1739593847377,-500.0,0.00011079,2]
[353136388,1739593847388,-500.0,0.00011079,2]
[353136389,1739593847399,-500.0,0.00011079,2]
[353136390,1739593847409,-500.0,0.00011079,2]
[353136391,1739593847690,-500.0,0.00011079,2]
[353136392,1739593847701,-500.0,0.00011079,2]
[353136393,1739593847711,-500.0,0.00011079,2]
[353136394,1739593847721,-500.0,0.00011079,2]
[353136395,1739593847731,-500.0,0.00011079,2]
[353136396,1739593847740,-500.0,0.00011079,2]
[353136397,1739593847750,-500.0,0.00011079,2]
[353136398,1739593847760,-500.0,0.00011079,2]
[353136399,1739593847770,-500.0,0.00011079,2]
[353136400,1739593847779,-500.0,0.00011079,2]
[353136401,1739593847789,-500.0,0.00011079,2]
[353136402,1739593847798,-500.0,0.00011079,2]
[353136403,1739593847810,-500.0,0.00011079,2]
[353136404,1739593847820,-500.0,0.00011079,2]
[353136405,1739593847830,-500.0,0.00011079,2]
[353136406,1739593847840,-500.0,0.00011079,2]
[353136407,1739593847850,-500.0,0.00011079,2]
[353136408,1739593847859,-500.0,0.00011079,2]
[353136409,1739593847869,-500.0,0.00011079,2]
[353136410,1739593847879,-500.0,0.00011079,2]
[353136411,1739593847889,-500.0,0.00011079,2]
[353136412,1739593847899,-500.0,0.00011079,2]
[353136413,1739593847909,-500.0,0.00011079,2]
[353136414,1739593847919,-500.0,0.00011079,2]
[353136415,1739593847929,-500.0,0.00011079,2]
[353136416,1739593847939,-500.0,0.00011079,2]
[353136417,1739593847951,-500.0,0.00011079,2]
[353136418,1739593847963,-557.82,0.00011079,2]
[353136419,1739593847973,-500.0,0.00011079,2]
[353136420,1739593847984,-500.0,0.00011079,2]
[353136421,1739593847994,-500.0,0.00011079,2]
[353136422,1739593848004,-500.0,0.00011079,2]
[353136423,1739593848014,-500.0,0.00011079,2]
[353136424,1739593848025,-500.0,0.00011079,2]
[353136425,1739593848035,-500.0,0.00011079,2]
[353136426,1739593848046,-500.0,0.00011079,2]
[353136427,1739593848057,-500.0,0.00011079,2]
[353136428,1739593848067,-500.0,0.00011079,2]
[353136429,1739593848078,-500.0,0.00011079,2]